Cogmind - Beta 14 *** ADVENTURER MODE // 2024.08.09 @ 04:16:50 Player: Vexic Result: Self-destructed Performance ------------- Evolutions (0) 0 Regions Visited (4) 800 Robots Destroyed (42) 210 Value Destroyed (858) 858 Prototype IDs (0) 0 Alien Tech Used (0) 0 Bonus (0) 0 TOTAL SCORE: 1868 Bonus ------- None Cogmind --------- Core Integrity 47/250 Matter 236/300 Energy 83/250 System Corruption 1% Temperature Cool (0) Movement Treading (320) Ox2 Location -9/Mines Parts ------- > --- POWER (1) -------- Ion Engine > --- PROPULSION (2) --- Light Treads Light Treads > --- UTILITY (2) ------ Huge Storage Unit Makeshift Sensor Array > --- WEAPON (2) ------- Heavy EM Pulse Gun Heavy EM Pulse Gun > --- INVENTORY (25) --- Light Treads Light Treads Large Storage Unit Tractor Beam Heavy EM Pulse Gun Heavy EM Pulse Gun Particle Gun Particle Gun Particle Gun Particle Gun Datajack Peak State ------------ > --- POWER ------------ Ion Engine > --- PROPULSION ------- Light Treads Light Treads > --- UTILITY ---------- Huge Storage Unit Makeshift Sensor Array > --- WEAPON ----------- Particle Gun Particle Gun > --- INVENTORY -------- Ion Engine Light Treads Light Treads Large Storage Unit Tractor Beam Heavy EM Pulse Gun Heavy EM Pulse Gun Heavy EM Pulse Gun Heavy EM Pulse Gun Particle Gun Particle Gun Rocket Launcher Datajack [Rating: 17] Favorites ----------- Power Ion Engine Engine Ion Engine Propulsion Light Treads Treads Light Treads Utility Huge Storage Unit Device Seismic Detector Storage Huge Storage Unit Weapon Heavy EM Pulse Gun Energy Gun Heavy EM Pulse Gun Launcher Rocket Launcher Special Melee Weapon Datajack Build | -11 -10 -10 -10 -9 ------- Run | Yrd Mat Min Exi Min Slots Evolved . | . . . . . Power . | . . . . . Propulsion . | . . . . . Utility . | . . . . . Weapon . | . . . . . Parts Attached 32 | 6 10 2 10 4 Power 3 | 1 1 . . 1 Engine 3 | 1 1 . . 1 Core . | . . . . . Reactor . | . . . . . Propulsion 4 | 2 1 . 1 . Treads 4 | 2 1 . 1 . Leg . | . . . . . Wheel . | . . . . . Hover . | . . . . . Flight . | . . . . . Utility 5 | 1 3 . 1 . Device 2 | . 1 . 1 . Storage 3 | 1 2 . . . Processor . | . . . . . Hackware . | . . . . . Protection . | . . . . . Artifact . | . . . . . Weapon 20 | 2 5 2 8 3 Energy Gun 16 | 2 5 1 6 2 Energy Cannon . | . . . . . Ballistic Gun . | . . . . . Ballistic Cannon . | . . . . . Launcher 3 | . . 1 1 1 Special Weapon . | . . . . . Impact Weapon . | . . . . . Slashing Weapon . | . . . . . Piercing Weapon . | . . . . . Special Melee Weapon 1 | . . . 1 . Unidentified Prototypes . | . . . . . Parts Lost 4 | . 2 . . 2 Power 2 | . 1 . . 1 Propulsion . | . . . . . Utility . | . . . . . Weapon 2 | . 1 . . 1 Highest Loss Streak 2 | . 1 . . 2 To Critical Strikes 1 | . . . . 1 Average Slot Usage (%) 98 | . 96 99 97 99 Engine 13 | . 14 14 14 13 Treads 27 | . 27 28 28 28 Device 13 | . 11 14 14 14 Storage 14 | . 14 14 14 14 Energy Gun 21 | . 28 19 21 17 Launcher 4 | . . 8 3 10 Peak Build Rating 17 | 6 10 10 17 17 Average Rating 12 | 4 8 9 14 16 On Entrance 8 | . 6 10 10 17 Naked Turns . | . . . . . Heaviest Build 97 | 14 92 93 96 97 Greatest Support 40 | 40 40 40 40 40 Greatest Overweight (x) 2 | . 2 2 2 2 Average Overweight (x) 1 | . . 2 2 2 Largest Inventory Capacity 25 | 8 25 25 25 25 Average Capacity 22 | 6 15 25 25 25 Most Carried 14 | . 10 12 13 14 Average Carried 9 | . 5 10 11 12 Final Capacity 25 | 8 25 25 25 25 Final Carried 13 | . 10 11 13 11 Class Distribution -------------------- 100% | Mutant Dominant Class ---------------- Mutant | -10/Materials Mutant | -10/Mines Mutant | -10/Exiles Mutant | -9/Mines Resources | -11 -10 -10 -10 -9 ----------- Run | Yrd Mat Min Exi Min Matter Collected 753 | 232 170 105 38 208 Remotely . | . . . . . Salvage Created 1441 | . 854 301 268 18 Parts 87 | . 43 35 7 2 Haulers Intercepted 2 | . 2 . . . Recyclers Shooed 1 | . 1 . . . Parts Field Recycled . | . . . . . Retrieved Matter . | . . . . . Parts Self-Destructed . | . . . . . Prevented . | . . . . . Kills | -11 -10 -10 -10 -9 ------- Run | Yrd Mat Min Exi Min Combat Hostiles Destroyed 29 | . 18 8 . 3 Guns 20 | . 15 4 . 1 AOE 9 | . 3 4 . 2 Classes Destroyed 9 | . 6 2 . 1 Worker 6 | . 2 3 . 1 Builder 1 | . . 1 . . Tunneler 1 | . . 1 . . Hauler 2 | . 2 . . . Recycler 4 | . 2 2 . . Watcher 2 | . 2 . . . Swarmer 15 | . 9 6 . . Grunt 11 | . 9 2 . . Assembled 3 | . . . . 3 Best Kill Streak 4 | . 4 4 . 3 Combat Bots Only 3 | . 3 3 . 3 Max Kills in Single Turn 2 | . 2 2 . 1 Gunslinging 1 | . 1 . . . Exploded 2 | . 2 2 . 1 Melee . | . . . . . Uniques/NPCs Destroyed . | . . . . . Combat | -11 -10 -10 -10 -9 -------- Run | Yrd Mat Min Exi Min Hostile Shots Fired 130 | . 88 21 . 21 Missed 40 | . 30 4 . 6 Damage Taken 1000 | . 477 102 . 421 Core 203 | . 110 23 . 70 Absorbed by Shields . | . . . . . Ignored by Resistances 302 | . 153 35 . 114 Regen/Repaired (Parts) 108 | . 108 . . . Core Remaining (%) 100 | 100 . . . . Volleys Fired 154 | . 89 22 35 8 Largest 2 | . 2 2 2 2 Hottest 130 | . 115 90 130 78 Shots Fired 292 | . 174 43 61 14 Gun 270 | . 174 35 52 9 Cannon . | . . . . . Launcher 22 | . . 8 9 5 Special . | . . . . . Kinetic . | . . . . . Thermal 112 | . 60 . 52 . Explosive 22 | . . 8 9 5 Electromagnetic 158 | . 114 35 . 9 Robot Hit Streak 24 | . 14 4 22 24 Robot Miss Streak 6 | . 6 2 2 1 Penetration Max . | . . . . . Secondary Targets 3 | . 3 . . . Max Gunslinging Chain 1 | . 1 . . . Shots Hit Robots 138 | . 73 11 47 7 Core Hits 77 | . 32 16 20 9 Critical Kills . | . . . . . Critical Parts Destroyed . | . . . . . Critical Strikes 7 | . 4 2 1 . Burn 5 | . 4 . 1 . Corrupt 2 | . . 2 . . Melee Attacks 3 | . . . 3 . Impact . | . . . . . Slashing . | . . . . . Piercing . | . . . . . Sneak Attacks 2 | . . . 2 . Combat Hostiles 2 | . . . 2 . Follow-up Attacks . | . . . . . Damage Inflicted 3372 | . 1464 807 834 267 Guns 1995 | . 1055 199 675 66 Cannons . | . . . . . Explosions 1336 | . 406 576 159 195 Melee . | . . . . . Ramming 41 | . 3 32 . 6 Kinetic . | . . . . . Thermal 1774 | . 831 268 675 . Explosive 662 | . . 308 159 195 Electromagnetic 895 | . 630 199 . 66 Impact . | . . . . . Slashing . | . . . . . Piercing . | . . . . . Highest Corruption 1 | . 1 1 1 1 Average Corruption 1 | . 1 1 1 1 Corruption Purged . | . . . . . Corruption Blocked . | . . . . . Effects 38 | . 1 9 23 5 Message Errors 11 | . . 4 5 2 Matter Fused 6 | . 1 1 4 . Heat Flow Errors 5 | . . 2 3 . Energy Discharges 8 | . . . 6 2 Data Loss (minor) 3 | . . . 3 . Data Loss (major) 1 | . . 1 . . Misfires 2 | . . . 1 1 Weapon Failures 2 | . . 1 1 . Overload Shots . | . . . . . Overflow Damage 46 | . 21 24 . 1 Projectiles . | . . . . . Explosions 46 | . 21 24 . 1 Melee . | . . . . . Knockbacks . | . . . . . Impact . | . . . . . Kinetic . | . . . . . Secondary . | . . . . . Self-Inflicted Damage 137 | . 67 . . 70 Shots 5 | . 3 . . 2 Rammed 7 | . 1 5 . 1 Targets Rammed 8 | . 2 5 . 1 Kicked . | . . . . . Crushed 1 | . 1 . . . Highest Temperature 417 | . 396 269 417 37 Average Temperature 119 | . 122 55 161 23 Received Heat Transfer 156 | . 150 6 . . Effects 6 | . 2 . 4 . Shutdowns 1 | . . . 1 . Energy Bleed 2 | . . . 2 . Matter Decay 1 | . 1 . . . Damage (minor) 2 | . 1 . 1 . Siege Activations . | . . . . . Robots Corrupted . | . . . . . Combat Hostiles . | . . . . . Parts Fried 1 | . 1 . . . Impact Corruptions . | . . . . . Robots Melted . | . . . . . Combat Hostiles . | . . . . . Parts Melted 5 | . 3 1 1 . Heat Transferred 4207 | . 2055 450 1702 . Parts Sabotaged . | . . . . . Parts Stolen . | . . . . . Parts Stripped . | . . . . . Power Chain Reactions 8 | . 7 1 . . Alert | -11 -10 -10 -10 -9 ------- Run | Yrd Mat Min Exi Min Peak Influence 268 | . 268 212 . 24 Initial 22 | . . 22 . . Average 69 | . 116 64 . 2 Maximum Alert Level 1 | . 1 1 . . Low Security (%) 89 | 100 75 96 . 100 Level 1 10 | . 24 3 . . Level 2 . | . . . . . Level 3 . | . . . . . Level 4 . | . . . . . Level 5 . | . . . . . High Security . | . . . . . Max Security . | . . . . . Squads Dispatched 4 | . 4 . . . Investigation 4 | . 4 . . . Extermination . | . . . . . Reinforcement . | . . . . . Assault . | . . . . . Garrison . | . . . . . Intercept . | . . . . . Searches Triggered . | . . . . . Construction Impeded . | . . . . . Haulers Reinforced . | . . . . . Active Scanning Responses . | . . . . . Cargo Convoy Interrupts . | . . . . . Stealth | -11 -10 -10 -10 -9 --------- Run | Yrd Mat Min Exi Min Distress Signals 1 | . 1 . . . Communications Jammed . | . . . . . Distress Signals . | . . . . . Times Spotted 40 | . 26 7 . 7 Peak Tracking Total 4 | . 4 3 . 3 Tactical Retreats 1 | . 1 . . . Traps | -11 -10 -10 -10 -9 ------- Run | Yrd Mat Min Exi Min Traps Triggered . | . . . . . Indirectly . | . . . . . Trap Hack Attempts . | . . . . . Triggered . | . . . . . Disarmed . | . . . . . Reprogrammed 12 | . 12 . . . Reused 3 | . 3 . . . Traps Extracted . | . . . . . Installed . | . . . . . Triggered 3 | . 3 . . . Machines | -11 -10 -10 -10 -9 ---------- Run | Yrd Mat Min Exi Min Machines Disabled 19 | . 8 9 2 . Max in Single Turn 5 | . 2 5 1 . Machines Repaired . | . . . . . Machines Dismantled . | . . . . . Machines Sabotaged 1 | . 1 . . . Overloaded Fab Kills . | . . . . . Hacking | -11 -10 -10 -10 -9 --------- Run | Yrd Mat Min Exi Min Machines Accessed 11 | . 8 . 3 . Terminals 7 | . 7 . . . Fabricators . | . . . . . Repair Stations 1 | . 1 . . . Recycling Units . | . . . . . Scanalyzers . | . . . . . Garrison Access . | . . . . . Total Hacks 26 | . 19 . 7 . Successful 20 | . 13 . 7 . Failed 6 | . 6 . . . Catastrophic 3 | . 3 . . . Database Lockouts . | . . . . . Manual 15 | . 13 . 2 . Terminals 15 | . 15 . . . Fabricators . | . . . . . Repair Stations 4 | . 4 . . . Recycling Units . | . . . . . Scanalyzers . | . . . . . Garrison Access . | . . . . . Terminal Hacks 13 | . 6 . 7 . Record 7 | . . . 7 . Locate Traps 3 | . 3 . . . Reprogram Traps 2 | . 2 . . . Registered Components 1 | . 1 . . . Fabricator Hacks . | . . . . . Repair Station Hacks 2 | . 2 . . . Scan Component 1 | . 1 . . . Repair 1 | . 1 . . . Recycling Unit Hacks . | . . . . . Scanalyzer . | . . . . . Garrison Access Hacks . | . . . . . Unauthorized Hacks 5 | . 5 . . . Terminals 5 | . 5 . . . Detonate 1 | . 1 . . . Operators 1 | . 1 . . . Sabotage 3 | . 3 . . . Fabricators . | . . . . . Repair Stations . | . . . . . Recycling Units . | . . . . . Scanalyzers . | . . . . . Garrison Access . | . . . . . Data Cores Recovered . | . . . . . Used . | . . . . . Hacking Detections 6 | . 6 . . . Full Trace Events 2 | . 2 . . . Feedback Events 1 | . 1 . . . Corruption 1 | . 1 . . . Feedback Blocked . | . . . . . Robot Schematics Acquired . | . . . . . Robots Built . | . . . . . Authchips . | . . . . . Time . | . . . . . Total Robot Build Rating . | . . . . . Part Schematics Acquired . | . . . . . Parts Built . | . . . . . Authchips . | . . . . . Time . | . . . . . Total Part Build Rating . | . . . . . Parts Repaired 1 | . 1 . . . Time 26 | . 26 . . . Parts Recycled . | . . . . . Recycled Matter . | . . . . . Retrieved Matter . | . . . . . Retrieved Components . | . . . . . Parts Scanalyzed . | . . . . . Part Schematics Acquired . | . . . . . Parts Damaged . | . . . . . Bothacking | -11 -10 -10 -10 -9 ------------ Run | Yrd Mat Min Exi Min Used RIF Installer . | . . . . . Robots Hacked . | . . . . . Non-combat . | . . . . . Combat . | . . . . . Robot Hacks Applied . | . . . . . Relay Couplers Released . | . . . . . Fabnet Peak Effective % . | . . . . . Robots Rewired 1 | . . . 1 . Allies Hacked . | . . . . . Hacks Repelled . | . . . . . Allies | -11 -10 -10 -10 -9 -------- Run | Yrd Mat Min Exi Min Total Allies 1 | . . . 1 . Largest Group 1 | . . . 1 1 Highest-Rated Group 8 | . . . 8 8 Highest-Rated Ally 8 | . . . 8 8 Total Orders . | . . . . . Ally Attacks . | . . . . . Total Damage . | . . . . . Kills . | . . . . . Allies Corrupted . | . . . . . Allies Melted . | . . . . . Intel | -11 -10 -10 -10 -9 ------- Run | Yrd Mat Min Exi Min Robot Analysis Total . | . . . . . Derelict Logs Recovered 1 | . . 1 . . Drone Launches . | . . . . . Drone Recoveries . | . . . . . Exploration | -11 -10 -10 -10 -9 ------------- Run | Yrd Mat Min Exi Min Turns Passed 7263 | 68 1767 1693 2715 1020 Spaces Moved 2328 | 39 720 502 788 279 Core 2 | 2 . . . . Treads 2326 | 37 720 502 788 279 Legs . | . . . . . Wheels . | . . . . . Hover . | . . . . . Flight . | . . . . . Fastest Speed 50 | 50 160 320 320 320 Average Speed 278 | 154 194 320 320 320 Slowest Speed 320 | 160 320 320 320 320 Overloaded Moves . | . . . . . Propulsion Burnouts . | . . . . . Robots Hopped . | . . . . . Cave-ins Triggered . | . . . . . Exploration Rate (%) 68 | 4 97 96 93 54 Regions Visited 4 Branch Regions 3 Pre-discovered Areas 3 | . . 2 1 . Known Exits Taken . | . . . . . Unknown Exits Taken 4 | 1 1 1 1 . Scrap Searched 3 | . . 1 . 2 Spaces Dug 78 | . . 17 33 28 Terrain Destroyed 319 | . 93 107 71 48 Melee . | . . . . . Projectile . | . . . . . AOE 319 | . 93 107 71 48 Terrain Rammed . | . . . . . Walls Destroyed . | . . . . . Machines Disabled . | . . . . . Actions | -11 -10 -10 -10 -9 --------- Run | Yrd Mat Min Exi Min Total 2800 | 44 910 536 919 391 Wait 254 | . 74 3 79 98 Move 2324 | 38 719 501 787 279 Hop . | . . . . . Pick Up 13 | . 11 1 1 . Fast Attach 10 | 6 4 . . . Attach 10 | . 2 2 3 3 Detach 6 | . . 2 3 1 Swap 12 | . 4 . 7 1 Drop 5 | . 5 . . . Fire 154 | . 89 22 35 8 Melee 3 | . . . 3 . Ram . | . . . . . Kick . | . . . . . Crush 8 | . 2 5 . 1 Escape Stasis . | . . . . . Rewire 1 | . . . 1 . Trap . | . . . . . Miscellaneous . | . . . . . Route ------- -11/Scrapyard -10/Materials (discovered 4 exits: [*Mat x3] / [*Min]) -10/Mines (discovered 2 exits: [*Mat] / *Exi) -10/Exiles (discovered 2 exits: [*Min x2]) -9/Mines (discovered 2 exits: [*Mat x2]) History --------- Turn | Location | Event 50 | -11/Scrapyard | Discovered new exit (range 12) 69 | -11/Scrapyard | Entered Materials 317 | -10/Materials | Build established: Mutant 375 | -10/Materials | Discovered new exit (range 13) 689 | -10/Materials | Discovered new exit (range 15) 983 | -10/Materials | Discovered new exit (range 6) 1317 | -10/Materials | Discovered new exit (range 7) 1375 | -10/Materials | Repaired Lgt. Treads 1836 | -10/Materials | Entered Mines 2408 | -10/Mines | Received a Rocket Launcher from a helpful Derelict 2489 | -10/Mines | Discovered new exit (range 11) 2507 | -10/Mines | Core integrity fell below 50% 3226 | -10/Mines | Learned location of Storage (-8) 3513 | -10/Mines | Deemed a non-threat by the Exiles lab entrance 3516 | -10/Mines | Discovered new exit (range 5) 3529 | -10/Mines | Entered Exiles 3529 | -10/Exiles | Found Exiles lab destroyed 3577 | -10/Exiles | Discovered new exit (range 15) 4548 | -10/Exiles | Learned location of Zion (-7) 4682 | -10/Exiles | Discovered new exit (range 10) 6244 | -10/Exiles | Entered Mines 6244 | -9/Mines | Accompanied by 1 ally 6552 | -9/Mines | Joined a pair of Derelicts in attacking an 0b10 outpost 6630 | -9/Mines | Discovered new exit (range 15) 7178 | -9/Mines | Assembled infested the area 7179 | -9/Mines | Discovered new exit (range 10) 7183 | -9/Mines | Assisted by a Guerilla fighting off Assembled 7230 | -9/Mines | Core integrity fell below 20% 7264 | -9/Mines | Self-destructed Last Messages --------------- 07191_ U-05 Engineer lays Concrete. 07192_ D-53 Grenadier knocked back. 07193_ U-05 Engineer lays Concrete. 07194_ HV Slug penetrates D-53 Grenadier. 07194_ D-53 Grenadier suffers critical hit (Destroy). 07195_ U-05 Engineer builds a Wall. 07195_ U-05 Engineer destroyed. 07196_ HV Slug penetrates D-53 Grenadier. 07196_ D-53 Grenadier suffers critical hit (Destroy). 07196_ D-53 Grenadier destroyed. 07197_ The unstable cave ceiling collapses. 07230_ Critical hit (Destroy). 07230_ Ion Engine destroyed. 07231_ as-61345 destroyed. 07234_ as-85631 destroyed. 07234_ Rocket Launcher destroyed. 07234_ Destroyed Rocket Launcher. 07239_ The unstable cave ceiling collapses. 07241_ as-87901 destroyed. 07250_ The unstable cave ceiling collapses. Map ----- +----------------------------------------------------+ | ????????????????????????????????????????????? | | ????????????????????????????????????????????? | | ????????????????????????????????????????????? | | ????????????????????????????????????????????? | | ????????????????????????????????????????????? | | ????????????????????????????????????????????? | | ????????????????????????????????????????????? | | ????????????????????????????????????????????? | | ????????????????????????????????????????????? | | ????????????????????????????????????????????? | | ????????????????????????????????????????????? | | ????????????????????????????????????????????? | | ?????????????????????????????????????????#### | | ??????????????????????????????????????#### # | | ?????????????????????????????????????## | | ?????????????????????????????????????# | | ????????????????#??????????????????### ! | | ????????????????# ?????????????????# | | ????????????????# ?????????????????#!### * | | ????????????????# ???????????##???# #?###### | | ????????????????? ###???????## ##?#!#??????? | | ?????????????????? #???????# ###[#???##?? | | ??????????????????? #????????# ##?### ##? | | ?????????????????### #####????# % ## | | ?????????????# ### ##???# | | ?????????????# @ # ##??# !=? | | ?????????????###### #??##=%|%### | | ?????????????????# % #####!!###??# | | ?????????????????## # # %! ##??? | | ?????????????????# a ?= ##??? | | ?????????????????# # ? ##?? # | | ????????????????# ##### #???### | | ????????????????## ##??# # #?????? | | ?????????????????# #??### # #?????? | | ?????????????????# ### #?????? | | ????????????????? ## ?#?### #?????? | | ????????????????? ?###?????# # # #?? | | ????????????????= ?????????# ## #? | | ????????????????%= ?????????# ? # | | ???????????????##%??????????###### | | ?????????????????????????????????##% % | | ??????????????????????????????????? <% | | ??????????????????????????????????? % " | | ???????????????????????????????????## | | ?????????????????????????????????????# | | ??????????????????????????????????????### # | | ???????????????????????????????????????#####? | | ????????????????????????????????????????????? | | ????????????????????????????????????????????? | | ????????????????????????????????????????????? | +----------------------------------------------------+ Best States ------------- Heat Dissipation 25 Energy Generation 10 Energy Capacity 250 Matter Stores 300 Matter Capacity 300 Sight Range 16 Robot Scan Range 19 Terrain Scan Density 10 Resistance: KI 20 Resistance: TH 20 Resistance: EX 20 Resistance: EM 20 Resistance: I 20 Resistance: S 20 Resistance: P 20 Evasion (%) 40 Recoil Reduction 2 Offensive Hacking 10 Item Schematics ----------------- None Robot Schematics ------------------ None Fabricated ------------ Nothing Alien Tech Used ----------------- None Achievements -------------- Brute Force Challenges ------------ None Game ------ Seed MassExperimentalCloak Manual? 0 Play Time 00:28:26 Cumulative 25.5 hours Start 2024.08.09 @ 00:55:02 End 2024.08.09 @ 04:16:50 Sessions 1 Manual Loads 0 Difficulty Adventurer Special Mode None Game No. 46 Rogue 37 Adventurer 9 Explorer 0 Win Type - Total 0 Types 0/0/0/0/0/0/0/0/0 Lore% 14 Gallery% 26 Achievement% 28 Wizard Run 0 Options --------- Layout 0 ASCII 0 Keyboard 0 Movement Mouse Keybinds 0 Fullscreen 1 Font 36/Smallcaps Map View 76x50 Zoom Use 0% Tactical HUD 1 Map Filters NONE Filters NONE Steam 1 RUN: b363b01b-6519-4e40-a6ab-ad3d2a41e6cf